[Event "*** Titled Tuesday Blitz"]
[Site "Chess.com"]
[Date "2021.04.06"]
[Round "7"]
[White "Rondo_Capriccioso"]
[Black "blitzking1729"]
[Result "0-1"]
[WhiteElo "2480"]
[BlackElo "2629"]
[TimeControl "180+1"]
[EndTime "11:16:59 PDT"]
[Termination "blitzking1729 won by resignation"]

1. e4 {[%clk 0:02:59.2]} 1... c5 {[%clk 0:02:53.5]} 2. Nf3 {[%clk 0:02:53.4]}
2... e6 {[%clk 0:02:53.1]} 3. d4 {[%clk 0:02:53.6]} 3... cxd4 {[%clk 0:02:53.4]}
4. Nxd4 {[%clk 0:02:54.5]} 4... a6 {[%clk 0:02:53.8]} 5. Bd3 {[%clk 0:02:53.9]}
5... Bc5 {[%clk 0:02:53]} 6. Nb3 {[%clk 0:02:54.1]} 6... Ba7 {[%clk 0:02:52.5]}
7. c4 {[%clk 0:02:45.9]} 7... Nf6 {[%clk 0:02:51.9]} 8. Nc3 {[%clk 0:02:46.5]}
8... Nc6 {[%clk 0:02:51.3]} 9. O-O {[%clk 0:02:46.6]} 9... h5 {[%clk 0:02:50.9]}
10. Bg5 {[%clk 0:02:45.9]} 10... Qc7 {[%clk 0:02:50.1]} 11. Rc1 {[%clk
0:02:32.4]} 11... Ng4 {[%clk 0:02:48]} 12. g3 {[%clk 0:02:30.6]} 12... f6 {[%clk
0:02:08.7]} 13. Bf4 {[%clk 0:02:27.3]} 13... Nce5 {[%clk 0:02:04.2]} 14. h3
{[%clk 0:02:22.1]} 14... g5 {[%clk 0:02:03.6]} 15. Bxe5 {[%clk 0:01:59.1]} 15...
Nxe5 {[%clk 0:01:49.6]} 16. Kg2 {[%clk 0:01:58.3]} 16... b6 {[%clk 0:01:44.6]}
17. Be2 {[%clk 0:01:55.2]} 17... Bb7 {[%clk 0:01:44.8]} 18. Bxh5+ {[%clk
0:01:54]} 18... Ke7 {[%clk 0:01:42.3]} 19. f4 {[%clk 0:01:26.1]} 19... gxf4
{[%clk 0:01:41.3]} 20. gxf4 {[%clk 0:01:27]} 20... Rag8+ {[%clk 0:01:40.7]} 21.
Kh2 {[%clk 0:01:26.4]} 21... Nxc4 {[%clk 0:01:37.4]} 22. Nd2 {[%clk 0:00:46.4]}
22... b5 {[%clk 0:01:31]} 23. Bg4 {[%clk 0:00:39.8]} 23... Be3 {[%clk
0:01:21.8]} 24. Ne2 {[%clk 0:00:33.9]} 24... Rxg4 {[%clk 0:01:16.1]} 25. b3
{[%clk 0:00:27.1]} 25... Bxd2 {[%clk 0:01:10.5]} 26. Qxd2 {[%clk 0:00:25.1]}
26... Nxd2 {[%clk 0:01:10]} 27. Rxc7 {[%clk 0:00:26]} 27... Nxf1+ {[%clk
0:01:09.9]} 0-1

[Event "*** Titled Tuesday Blitz"]
[Site "Chess.com"]
[Date "2021.04.06"]
[Round "7"]
[White "BanjoKazooieN64"]
[Black "ellennilssen"]
[Result "1-0"]
[WhiteElo "2460"]
[BlackElo "2237"]
[TimeControl "180+1"]
[EndTime "11:17:04 PDT"]
[Termination "BanjoKazooieN64 won by resignation"]

1. e4 {[%clk 0:03:00.9]} 1... e6 {[%clk 0:02:59.4]} 2. d3 {[%clk 0:02:59.5]}
2... d5 {[%clk 0:02:59.5]} 3. Nd2 {[%clk 0:02:59.8]} 3... Nf6 {[%clk 0:02:59]}
4. g3 {[%clk 0:03:00.2]} 4... c5 {[%clk 0:02:58.8]} 5. Bg2 {[%clk 0:03:00.6]}
5... Nc6 {[%clk 0:02:59.4]} 6. Ngf3 {[%clk 0:03:00.1]} 6... Be7 {[%clk
0:02:59.6]} 7. O-O {[%clk 0:03:00.4]} 7... b6 {[%clk 0:02:59.5]} 8. Re1 {[%clk
0:03:00.8]} 8... Bb7 {[%clk 0:02:59.2]} 9. e5 {[%clk 0:03:00.3]} 9... Nd7 {[%clk
0:02:58.7]} 10. Qe2 {[%clk 0:03:00.6]} 10... Qc7 {[%clk 0:02:59.1]} 11. h4
{[%clk 0:03:00]} 11... h6 {[%clk 0:02:59.1]} 12. Nf1 {[%clk 0:03:00]} 12...
O-O-O {[%clk 0:02:56.7]} 13. c3 {[%clk 0:02:58]} 13... Rdg8 {[%clk 0:02:55.7]}
14. h5 {[%clk 0:02:55.7]} 14... g5 {[%clk 0:02:54.9]} 15. d4 {[%clk 0:02:50.4]}
15... g4 {[%clk 0:02:40.5]} 16. N3h2 {[%clk 0:02:49.5]} 16... cxd4 {[%clk
0:02:40]} 17. cxd4 {[%clk 0:02:49.8]} 17... Nxd4 {[%clk 0:02:39.7]} 18. Qd1
{[%clk 0:02:50.2]} 18... Nc2 {[%clk 0:02:36.1]} 19. Bf4 {[%clk 0:02:48.8]} 19...
Nxa1 {[%clk 0:02:31.4]} 20. Qxa1 {[%clk 0:02:49.7]} 20... Kb8 {[%clk 0:02:28.5]}
21. Rc1 {[%clk 0:02:49.9]} 21... Qd8 {[%clk 0:02:22.5]} 22. Ne3 {[%clk
0:02:49.9]} 22... Bg5 {[%clk 0:02:18.4]} 23. Bxg5 {[%clk 0:02:30.3]} 23... Rxg5
{[%clk 0:02:19.3]} 24. Nexg4 {[%clk 0:02:24.6]} 24... Rxh5 {[%clk 0:02:17.7]}
25. f4 {[%clk 0:02:23.5]} 25... Rg8 {[%clk 0:02:13.5]} 26. Rc3 {[%clk
0:02:21.5]} 26... Nc5 {[%clk 0:02:11.9]} 27. Nf6 {[%clk 0:02:16.1]} 27... Rxh2
{[%clk 0:01:55.7]} 28. Kxh2 {[%clk 0:02:14.6]} 28... d4 {[%clk 0:01:51.8]} 29.
Rc2 {[%clk 0:01:53.5]} 29... Rh8 {[%clk 0:01:45.4]} 30. b4 {[%clk 0:01:49.4]}
30... Na6 {[%clk 0:01:20.5]} 31. Bxb7 {[%clk 0:01:37.4]} 31... Kxb7 {[%clk
0:01:21.4]} 32. Qh1+ {[%clk 0:01:37.6]} 32... Kb8 {[%clk 0:01:17.6]} 33. Qc6
{[%clk 0:01:38.1]} 33... Nxb4 {[%clk 0:01:00]} 34. Nd7+ {[%clk 0:01:27.5]} 34...
Qxd7 {[%clk 0:01:00.3]} 35. Qxd7 {[%clk 0:01:28.2]} 35... Nxc2 {[%clk
0:01:00.8]} 36. Qxf7 {[%clk 0:01:02.5]} 36... Rd8 {[%clk 0:00:53.9]} 37. Qe7
{[%clk 0:01:02.6]} 37... Kc8 {[%clk 0:00:49.3]} 38. Qxe6+ {[%clk 0:01:02.6]}
38... Kc7 {[%clk 0:00:49.7]} 39. Qc4+ {[%clk 0:01:02.5]} 1-0

[Event "*** Titled Tuesday Blitz"]
[Site "Chess.com"]
[Date "2021.04.06"]
[Round "7"]
[White "Chigorinetz"]
[Black "Aygehovit1992"]
[Result "0-1"]
[WhiteElo "2517"]
[BlackElo "2661"]
[TimeControl "180+1"]
[EndTime "11:17:10 PDT"]
[Termination "Aygehovit1992 won by resignation"]

1. e4 {[%clk 0:03:00.9]} 1... d6 {[%clk 0:02:59.9]} 2. Nc3 {[%clk 0:02:58.3]}
2... g6 {[%clk 0:03:00.2]} 3. f4 {[%clk 0:02:58.5]} 3... Bg7 {[%clk 0:03:00.4]}
4. Nf3 {[%clk 0:02:59.1]} 4... c5 {[%clk 0:02:58.5]} 5. Bc4 {[%clk 0:02:58.9]}
5... e6 {[%clk 0:02:57.6]} 6. O-O {[%clk 0:02:58.9]} 6... Ne7 {[%clk 0:02:57.9]}
7. Qe1 {[%clk 0:02:59.1]} 7... O-O {[%clk 0:02:57]} 8. d3 {[%clk 0:02:58.8]}
8... d5 {[%clk 0:02:56.3]} 9. Bb3 {[%clk 0:02:58.4]} 9... Nbc6 {[%clk
0:02:56.4]} 10. Kh1 {[%clk 0:02:57.3]} 10... b6 {[%clk 0:02:43.5]} 11. Qh4
{[%clk 0:02:54.7]} 11... f6 {[%clk 0:02:34.5]} 12. f5 {[%clk 0:02:54.2]} 12...
gxf5 {[%clk 0:02:27.2]} 13. exd5 {[%clk 0:02:52.7]} 13... Nxd5 {[%clk
0:02:23.4]} 14. Nxd5 {[%clk 0:02:42.8]} 14... exd5 {[%clk 0:02:24.3]} 15. Bh6
{[%clk 0:02:42.6]} 15... Rf7 {[%clk 0:02:23.5]} 16. Rae1 {[%clk 0:02:38.4]}
16... Na5 {[%clk 0:02:09.7]} 17. Bxd5 {[%clk 0:01:59.5]} 17... Qxd5 {[%clk
0:02:08.7]} 18. Re8+ {[%clk 0:01:42]} 18... Rf8 {[%clk 0:02:07.8]} 19. Qxf6
{[%clk 0:01:41.2]} 19... Qf7 {[%clk 0:02:03.7]} 20. Rxf8+ {[%clk 0:00:46.2]}
20... Qxf8 {[%clk 0:02:04.6]} 21. Qg5 {[%clk 0:00:46.4]} 21... Qf6 {[%clk
0:01:59.3]} 22. Re1 {[%clk 0:00:35.2]} 22... Qxg5 {[%clk 0:01:58.5]} 23. Bxg5
{[%clk 0:00:35.4]} 23... Nc6 {[%clk 0:01:46]} 24. c3 {[%clk 0:00:33.3]} 24...
Bd7 {[%clk 0:01:45.5]} 25. Kg1 {[%clk 0:00:32.4]} 25... Re8 {[%clk 0:01:45.4]}
26. Rxe8+ {[%clk 0:00:32.4]} 26... Bxe8 {[%clk 0:01:46.3]} 27. Kf2 {[%clk
0:00:32.7]} 27... Bf7 {[%clk 0:01:46.6]} 28. a3 {[%clk 0:00:31.5]} 28... Ba2
{[%clk 0:01:42.9]} 29. Bf4 {[%clk 0:00:29.5]} 29... Kf7 {[%clk 0:01:42.4]} 30.
h3 {[%clk 0:00:28.6]} 30... h6 {[%clk 0:01:42.4]} 31. g4 {[%clk 0:00:28]} 31...
fxg4 {[%clk 0:01:42.5]} 32. hxg4 {[%clk 0:00:28.5]} 32... Ke6 {[%clk 0:01:43]}
33. Ke3 {[%clk 0:00:27.3]} 33... Ne7 {[%clk 0:01:41.9]} 34. Bb8 {[%clk
0:00:25.9]} 34... a6 {[%clk 0:01:39.5]} 35. Ba7 {[%clk 0:00:22.7]} 35... Kd7
{[%clk 0:01:38.5]} 36. d4 {[%clk 0:00:18.7]} 36... cxd4+ {[%clk 0:01:34.7]} 37.
cxd4 {[%clk 0:00:19]} 37... Kc7 {[%clk 0:01:33.7]} 38. g5 {[%clk 0:00:16.9]}
38... Kb7 {[%clk 0:01:33]} 39. gxh6 {[%clk 0:00:15.9]} 39... Bxh6+ {[%clk
0:01:33]} 0-1

[Event "*** Titled Tuesday Blitz"]
[Site "Chess.com"]
[Date "2021.04.06"]
[Round "7"]
[White "Fandorine"]
[Black "moro182"]
[Result "1-0"]
[WhiteElo "2905"]
[BlackElo "2742"]
[TimeControl "180+1"]
[EndTime "11:17:18 PDT"]
[Termination "Fandorine won by resignation"]

1. Nf3 {[%clk 0:03:00.9]} 1... g6 {[%clk 0:02:59.5]} 2. g3 {[%clk 0:02:58.9]}
2... Bg7 {[%clk 0:03:00.4]} 3. Bg2 {[%clk 0:02:59.2]} 3... d6 {[%clk 0:03:00.7]}
4. O-O {[%clk 0:03:00]} 4... Bd7 {[%clk 0:03:01.3]} 5. c4 {[%clk 0:02:56.8]}
5... Qc8 {[%clk 0:02:59.6]} 6. d4 {[%clk 0:02:55.2]} 6... Nc6 {[%clk 0:02:59.2]}
7. Nc3 {[%clk 0:02:53.4]} 7... Bh3 {[%clk 0:02:58]} 8. Bxh3 {[%clk 0:02:45.2]}
8... Qxh3 {[%clk 0:02:58.9]} 9. d5 {[%clk 0:02:45.6]} 9... Ne5 {[%clk
0:02:58.3]} 10. Nxe5 {[%clk 0:02:44.6]} 10... Bxe5 {[%clk 0:02:59.1]} 11. Qb3
{[%clk 0:02:42.2]} 11... O-O-O {[%clk 0:02:46.9]} 12. Nb5 {[%clk 0:02:37.2]}
12... Kb8 {[%clk 0:02:29]} 13. Be3 {[%clk 0:02:36.4]} 13... a6 {[%clk
0:02:27.3]} 14. Nxc7 {[%clk 0:01:30.2]} 14... Kxc7 {[%clk 0:01:47.3]} 15. Bb6+
{[%clk 0:01:27.4]} 15... Kc8 {[%clk 0:01:43.6]} 16. f4 {[%clk 0:01:18.5]} 16...
Bg7 {[%clk 0:01:35.8]} 17. c5 {[%clk 0:01:06.1]} 17... Nf6 {[%clk 0:01:27]} 18.
Rac1 {[%clk 0:00:54.4]} 18... Ng4 {[%clk 0:01:21]} 19. cxd6+ {[%clk 0:00:44.9]}
19... Kb8 {[%clk 0:01:20.7]} 20. Rf2 {[%clk 0:00:45.3]} 20... Nxf2 {[%clk
0:01:10.3]} 21. Rc7 {[%clk 0:00:38.6]} 21... Ka8 {[%clk 0:00:57]} 22. Bxf2
{[%clk 0:00:33.1]} 22... b5 {[%clk 0:00:30.3]} 23. Qe3 {[%clk 0:00:30.7]} 1-0

[Event "*** Titled Tuesday Blitz"]
[Site "Chess.com"]
[Date "2021.04.06"]
[Round "7"]
[White "dosto07"]
[Black "shaheus"]
[Result "1-0"]
[WhiteElo "2260"]
[BlackElo "2369"]
[TimeControl "180+1"]
[EndTime "11:17:21 PDT"]
[Termination "dosto07 won by resignation"]

1. d4 {[%clk 0:03:00.9]} 1... Nf6 {[%clk 0:02:59.4]} 2. Nf3 {[%clk 0:02:59.4]}
2... g6 {[%clk 0:02:59.9]} 3. Nc3 {[%clk 0:02:57.7]} 3... Bg7 {[%clk 0:03:00.3]}
4. e4 {[%clk 0:02:56.4]} 4... d6 {[%clk 0:03:00.7]} 5. Be2 {[%clk 0:02:56.5]}
5... O-O {[%clk 0:03:00.9]} 6. O-O {[%clk 0:02:56.4]} 6... c6 {[%clk 0:03:01.5]}
7. a4 {[%clk 0:02:55.5]} 7... a5 {[%clk 0:03:01.1]} 8. Be3 {[%clk 0:02:48.5]}
8... Nbd7 {[%clk 0:02:59.6]} 9. Nd2 {[%clk 0:02:45.7]} 9... e5 {[%clk
0:02:58.5]} 10. dxe5 {[%clk 0:02:39.6]} 10... dxe5 {[%clk 0:02:56.7]} 11. Nc4
{[%clk 0:02:36.3]} 11... Qe7 {[%clk 0:02:56]} 12. Qd6 {[%clk 0:02:33.3]} 12...
Re8 {[%clk 0:02:48]} 13. Rad1 {[%clk 0:02:31.1]} 13... Bf8 {[%clk 0:02:44.5]}
14. Qxe7 {[%clk 0:02:23.9]} 14... Bxe7 {[%clk 0:02:41.9]} 15. Nd6 {[%clk
0:02:24.1]} 15... Rf8 {[%clk 0:02:28.8]} 16. Bc4 {[%clk 0:02:15.8]} 16... Kg7
{[%clk 0:02:27.1]} 17. g4 {[%clk 0:01:52.2]} 17... Bxd6 {[%clk 0:02:02.5]} 18.
Rxd6 {[%clk 0:01:50.4]} 18... Nxg4 {[%clk 0:02:01.9]} 19. Bc1 {[%clk 0:01:41]}
19... Nc5 {[%clk 0:01:49.5]} 20. f4 {[%clk 0:01:37.9]} 20... Be6 {[%clk
0:01:38.5]} 21. Be2 {[%clk 0:01:24.2]} 21... Rad8 {[%clk 0:01:17]} 22. Rxd8
{[%clk 0:01:19.2]} 22... Rxd8 {[%clk 0:01:15.2]} 23. f5 {[%clk 0:01:19.4]} 23...
Nxe4 {[%clk 0:00:35.2]} 24. fxe6 {[%clk 0:01:10.5]} 24... Nxc3 {[%clk
0:00:35.1]} 25. Rxf7+ {[%clk 0:01:01.2]} 25... Kg8 {[%clk 0:00:33.3]} 26. bxc3
{[%clk 0:01:01.1]} 26... h5 {[%clk 0:00:26.6]} 27. Bg5 {[%clk 0:00:52]} 27...
Rd2 {[%clk 0:00:22.7]} 28. Bxd2 {[%clk 0:00:50.8]} 1-0

[Event "*** Titled Tuesday Blitz"]
[Site "Chess.com"]
[Date "2021.04.06"]
[Round "7"]
[White "SanchezKelvin"]
[Black "Kostukov_Alex"]
[Result "0-1"]
[WhiteElo "2504"]
[BlackElo "2301"]
[TimeControl "180+1"]
[EndTime "11:17:22 PDT"]
[Termination "Kostukov_Alex won by checkmate"]

1. e4 {[%clk 0:03:00.9]} 1... c5 {[%clk 0:02:59.3]} 2. Nf3 {[%clk 0:03:01]} 2...
g6 {[%clk 0:02:59.6]} 3. d4 {[%clk 0:03:01.2]} 3... cxd4 {[%clk 0:02:59.9]} 4.
Qxd4 {[%clk 0:03:02.1]} 4... Nf6 {[%clk 0:02:59.6]} 5. e5 {[%clk 0:03:02.3]}
5... Nc6 {[%clk 0:03:00.5]} 6. Qa4 {[%clk 0:03:02.3]} 6... Nd5 {[%clk
0:03:00.2]} 7. Qe4 {[%clk 0:03:02.8]} 7... Ndb4 {[%clk 0:03:00.4]} 8. a3 {[%clk
0:02:59]} 8... d5 {[%clk 0:02:59.9]} 9. Qe2 {[%clk 0:02:59.3]} 9... Na6 {[%clk
0:02:57.3]} 10. Nc3 {[%clk 0:02:57.5]} 10... Bg4 {[%clk 0:02:54.8]} 11. Bf4
{[%clk 0:02:54.2]} 11... Bg7 {[%clk 0:02:43.7]} 12. O-O-O {[%clk 0:02:52.5]}
12... e6 {[%clk 0:02:40]} 13. h3 {[%clk 0:02:49.1]} 13... Bxf3 {[%clk 0:02:40]}
14. Qxf3 {[%clk 0:02:49.2]} 14... O-O {[%clk 0:02:32.8]} 15. Qg3 {[%clk
0:02:42.8]} 15... Nc5 {[%clk 0:02:30.3]} 16. f3 {[%clk 0:02:40.6]} 16... Nd7
{[%clk 0:02:21.3]} 17. Re1 {[%clk 0:02:35.1]} 17... a6 {[%clk 0:02:20.1]} 18.
Bd3 {[%clk 0:02:30.9]} 18... b5 {[%clk 0:02:19.4]} 19. h4 {[%clk 0:02:28.2]}
19... b4 {[%clk 0:02:16]} 20. axb4 {[%clk 0:02:27.2]} 20... Nxb4 {[%clk
0:02:16.1]} 21. h5 {[%clk 0:02:24.2]} 21... Nxd3+ {[%clk 0:02:15.8]} 22. cxd3
{[%clk 0:02:23.9]} 22... Qb6 {[%clk 0:02:10.6]} 23. hxg6 {[%clk 0:02:16.6]}
23... hxg6 {[%clk 0:02:03.8]} 24. Bh6 {[%clk 0:02:13.7]} 24... Rfb8 {[%clk
0:02:01]} 25. Re2 {[%clk 0:02:08]} 25... Bxe5 {[%clk 0:02:01]} 26. Rxe5 {[%clk
0:01:42.5]} 26... Qxb2+ {[%clk 0:01:59.6]} 27. Kd1 {[%clk 0:01:41.9]} 27... Qxc3
{[%clk 0:01:57.3]} 28. Reh5 {[%clk 0:01:24.2]} 28... Qxd3+ {[%clk 0:01:53.4]}
29. Ke1 {[%clk 0:01:21.9]} 29... Rb1+ {[%clk 0:01:51.4]} 30. Kf2 {[%clk
0:01:22.1]} 30... Qc2+ {[%clk 0:01:42.9]} 31. Ke3 {[%clk 0:01:19.9]} 31... Rb3+
{[%clk 0:01:39.2]} 32. Kf4 {[%clk 0:01:19]} 32... Nf6 {[%clk 0:01:29.8]} 33. Ke5
{[%clk 0:00:48.4]} 33... Qc3+ {[%clk 0:01:17.4]} 34. Kd6 {[%clk 0:00:45.6]}
34... Ne8+ {[%clk 0:01:09.8]} 35. Ke7 {[%clk 0:00:44.7]} 35... Qf6+ {[%clk
0:01:07.7]} 36. Kd7 {[%clk 0:00:44.5]} 36... Qd8+ {[%clk 0:01:04.6]} 37. Kc6
{[%clk 0:00:43.5]} 37... Qb6+ {[%clk 0:01:04.6]} 38. Kd7 {[%clk 0:00:43.1]}
38... Ra7+ {[%clk 0:00:59.1]} 39. Kxe8 {[%clk 0:00:39.5]} 39... Qb8+ {[%clk
0:00:58.1]} 40. Qxb8 {[%clk 0:00:39.1]} 40... Rxb8# {[%clk 0:00:58.1]} 0-1

[Event "*** Titled Tuesday Blitz"]
[Site "Chess.com"]
[Date "2021.04.06"]
[Round "7"]
[White "Ladislav1969"]
[Black "PawnEatingZombie"]
[Result "1-0"]
[WhiteElo "2342"]
[BlackElo "2193"]
[TimeControl "180+1"]
[EndTime "11:17:23 PDT"]
[Termination "Ladislav1969 won on time"]

1. e4 {[%clk 0:03:00.9]} 1... c6 {[%clk 0:02:59.8]} 2. d4 {[%clk 0:03:01.1]}
2... d5 {[%clk 0:03:00.7]} 3. e5 {[%clk 0:03:01.7]} 3... Bf5 {[%clk 0:03:00.6]}
4. Nd2 {[%clk 0:03:02.3]} 4... e6 {[%clk 0:02:59.8]} 5. Nb3 {[%clk 0:03:02.9]}
5... Ne7 {[%clk 0:02:57.3]} 6. Nf3 {[%clk 0:03:03.4]} 6... Nc8 {[%clk
0:02:55.5]} 7. Be3 {[%clk 0:03:03.1]} 7... a5 {[%clk 0:02:54.9]} 8. a4 {[%clk
0:03:02.8]} 8... Be7 {[%clk 0:02:54.9]} 9. Be2 {[%clk 0:03:01.8]} 9... O-O
{[%clk 0:02:52.5]} 10. O-O {[%clk 0:03:01.7]} 10... Nb6 {[%clk 0:02:48.9]} 11.
Nfd2 {[%clk 0:03:01.5]} 11... N8d7 {[%clk 0:02:40.2]} 12. g4 {[%clk 0:03:01.4]}
12... Bg6 {[%clk 0:02:39.1]} 13. f4 {[%clk 0:03:01.5]} 13... f5 {[%clk
0:02:39.2]} 14. exf6 {[%clk 0:02:58.9]} 14... Nxf6 {[%clk 0:02:30.9]} 15. f5
{[%clk 0:02:56.9]} 15... exf5 {[%clk 0:02:22.6]} 16. gxf5 {[%clk 0:02:57.1]}
16... Bf7 {[%clk 0:02:20.5]} 17. Bf3 {[%clk 0:02:56.1]} 17... Bd6 {[%clk
0:02:15.1]} 18. Qe1 {[%clk 0:02:49.6]} 18... Re8 {[%clk 0:02:12.6]} 19. Qf2
{[%clk 0:02:49.6]} 19... Bh5 {[%clk 0:01:26]} 20. Rae1 {[%clk 0:02:46.4]} 20...
Bxf3 {[%clk 0:01:22.8]} 21. Qxf3 {[%clk 0:02:46.3]} 21... Ne4 {[%clk 0:01:02.3]}
22. Nxe4 {[%clk 0:02:43.5]} 22... Rxe4 {[%clk 0:01:02]} 23. Nd2 {[%clk
0:02:43.2]} 23... Re8 {[%clk 0:00:49.4]} 24. Qg4 {[%clk 0:02:28.6]} 24... Nd7
{[%clk 0:00:45.4]} 25. Bg5 {[%clk 0:02:20]} 25... Qc7 {[%clk 0:00:38]} 26. Nf3
{[%clk 0:02:12]} 26... Rf8 {[%clk 0:00:31.7]} 27. Re6 {[%clk 0:02:10.6]} 27...
c5 {[%clk 0:00:18.7]} 28. f6 {[%clk 0:02:02.6]} 28... Rf7 {[%clk 0:00:05.2]} 29.
Rfe1 {[%clk 0:01:53.9]} 29... Raf8 {[%clk 0:00:04]} 30. Ne5 {[%clk 0:01:47.4]}
30... Nxf6 {[%clk 0:00:02.4]} 31. Bxf6 {[%clk 0:01:15.7]} 31... Rxf6 {[%clk
0:00:02.2]} 32. Rxf6 {[%clk 0:01:15.9]} 32... Rxf6 {[%clk 0:00:02.4]} 33. Nd7
{[%clk 0:01:16.1]} 33... Bxh2+ {[%clk 0:00:02.1]} 34. Kh1 {[%clk 0:01:14.6]} 1-0

[Event "*** Titled Tuesday Blitz"]
[Site "Chess.com"]
[Date "2021.04.06"]
[Round "7"]
[White "Aradhya2000"]
[Black "Andreikka"]
[Result "0-1"]
[WhiteElo "2599"]
[BlackElo "2862"]
[TimeControl "180+1"]
[EndTime "11:17:26 PDT"]
[Termination "Andreikka won by checkmate"]

1. d4 {[%clk 0:03:00.9]} 1... d5 {[%clk 0:02:59.6]} 2. c4 {[%clk 0:03:00.7]}
2... dxc4 {[%clk 0:03:00.5]} 3. e4 {[%clk 0:03:00.1]} 3... Nf6 {[%clk
0:02:57.2]} 4. e5 {[%clk 0:02:59.9]} 4... Nd5 {[%clk 0:02:57.8]} 5. Bxc4 {[%clk
0:03:00.4]} 5... Bf5 {[%clk 0:02:57.7]} 6. Nc3 {[%clk 0:02:55.3]} 6... e6 {[%clk
0:02:52.9]} 7. Nge2 {[%clk 0:02:52.2]} 7... Nb6 {[%clk 0:02:46]} 8. Bd3 {[%clk
0:02:46.9]} 8... Bxd3 {[%clk 0:02:45.1]} 9. Qxd3 {[%clk 0:02:47.8]} 9... Nc6
{[%clk 0:02:42.7]} 10. Qe4 {[%clk 0:02:46.7]} 10... Qd7 {[%clk 0:02:40.9]} 11.
h4 {[%clk 0:02:43.4]} 11... O-O-O {[%clk 0:02:41]} 12. Be3 {[%clk 0:02:43.1]}
12... f5 {[%clk 0:02:37.9]} 13. Qc2 {[%clk 0:02:34.3]} 13... Nb4 {[%clk
0:02:33.8]} 14. Qb1 {[%clk 0:02:21.1]} 14... Be7 {[%clk 0:02:22.8]} 15. Nf4
{[%clk 0:02:17.3]} 15... N6d5 {[%clk 0:02:10.7]} 16. a3 {[%clk 0:02:14.9]} 16...
Nxf4 {[%clk 0:02:07.6]} 17. Bxf4 {[%clk 0:02:15.1]} 17... Qxd4 {[%clk
0:02:06.8]} 18. axb4 {[%clk 0:02:11.1]} 18... Qxf4 {[%clk 0:02:05.9]} 19. Rxa7
{[%clk 0:02:11.7]} 19... Qd2+ {[%clk 0:02:01.3]} 20. Kf1 {[%clk 0:02:11.4]}
20... Bxb4 {[%clk 0:02:01.2]} 21. Rh3 {[%clk 0:02:04.1]} 21... c6 {[%clk
0:01:45.1]} 22. Ra4 {[%clk 0:01:23.5]} 22... Bc5 {[%clk 0:01:00.9]} 23. Rf3
{[%clk 0:01:16.7]} 23... b5 {[%clk 0:01:00.7]} 24. Ra2 {[%clk 0:00:54.7]} 24...
Qd4 {[%clk 0:00:59.6]} 25. Qc1 {[%clk 0:00:43.6]} 25... Kb7 {[%clk 0:00:56.5]}
26. Ra1 {[%clk 0:00:23.7]} 26... Qxh4 {[%clk 0:00:54.6]} 27. Rg3 {[%clk
0:00:20.3]} 27... g5 {[%clk 0:00:48.6]} 28. Rxg5 {[%clk 0:00:16.2]} 28... Qxf2#
{[%clk 0:00:47.6]} 0-1

[Event "*** Titled Tuesday Blitz"]
[Site "Chess.com"]
[Date "2021.04.06"]
[Round "7"]
[White "Snowflake"]
[Black "Matols"]
[Result "1-0"]
[WhiteElo "2497"]
[BlackElo "2310"]
[TimeControl "180+1"]
[EndTime "11:17:29 PDT"]
[Termination "Snowflake won by checkmate"]

1. h4 {[%clk 0:03:00.9]} 1... d5 {[%clk 0:02:58.9]} 2. g3 {[%clk 0:02:58.4]}
2... e5 {[%clk 0:02:58]} 3. Bg2 {[%clk 0:02:58.3]} 3... Nf6 {[%clk 0:02:57.4]}
4. d3 {[%clk 0:02:57.7]} 4... Nc6 {[%clk 0:02:56.2]} 5. Nd2 {[%clk 0:02:57.3]}
5... Bd6 {[%clk 0:02:54.2]} 6. e4 {[%clk 0:02:57.3]} 6... d4 {[%clk 0:02:51.6]}
7. Ne2 {[%clk 0:02:57]} 7... O-O {[%clk 0:02:50.2]} 8. O-O {[%clk 0:02:54.3]}
8... Bg4 {[%clk 0:02:46.1]} 9. f3 {[%clk 0:02:50.4]} 9... Be6 {[%clk 0:02:45.3]}
10. f4 {[%clk 0:02:48.5]} 10... Bg4 {[%clk 0:02:40.2]} 11. f5 {[%clk 0:02:47.2]}
11... Nh5 {[%clk 0:02:29.5]} 12. Kh2 {[%clk 0:02:44]} 12... Be7 {[%clk
0:02:24.8]} 13. Bf3 {[%clk 0:02:41.4]} 13... Bxf3 {[%clk 0:02:17.1]} 14. Nxf3
{[%clk 0:02:41.7]} 14... g6 {[%clk 0:01:59.2]} 15. g4 {[%clk 0:02:34.9]} 15...
Ng7 {[%clk 0:01:30.4]} 16. Qe1 {[%clk 0:02:22.2]} 16... f6 {[%clk 0:01:21.2]}
17. Qg3 {[%clk 0:02:15.5]} 17... gxf5 {[%clk 0:01:10.8]} 18. gxf5 {[%clk
0:02:10.8]} 18... Kf7 {[%clk 0:01:10.6]} 19. Bh6 {[%clk 0:02:09.4]} 19... Rg8
{[%clk 0:01:09.6]} 20. Rg1 {[%clk 0:02:09.8]} 20... Nh5 {[%clk 0:01:01.8]} 21.
Qf2 {[%clk 0:02:09.7]} 21... Bf8 {[%clk 0:00:39.4]} 22. Bd2 {[%clk 0:02:06.3]}
22... Bg7 {[%clk 0:00:37.5]} 23. Rg2 {[%clk 0:02:03.9]} 23... Qf8 {[%clk
0:00:34.7]} 24. Rag1 {[%clk 0:02:02.3]} 24... Ke7 {[%clk 0:00:34.3]} 25. c3
{[%clk 0:01:52.5]} 25... dxc3 {[%clk 0:00:30.9]} 26. Nxc3 {[%clk 0:01:53.4]}
26... Re8 {[%clk 0:00:29.2]} 27. Nd5+ {[%clk 0:01:52.4]} 27... Kd8 {[%clk
0:00:29.1]} 28. Bh6 {[%clk 0:01:41.8]} 28... Kc8 {[%clk 0:00:19.8]} 29. d4
{[%clk 0:01:39.8]} 29... exd4 {[%clk 0:00:18.8]} 30. Rxg7 {[%clk 0:01:36.4]}
30... Nxg7 {[%clk 0:00:17.1]} 31. Qg3 {[%clk 0:01:35.8]} 31... Qd6 {[%clk
0:00:13.8]} 32. Bxg7 {[%clk 0:01:33.4]} 32... Rxg7 {[%clk 0:00:08.5]} 33. Qxd6
{[%clk 0:01:33]} 33... cxd6 {[%clk 0:00:07.2]} 34. Rxg7 {[%clk 0:01:33.9]} 34...
Rxe4 {[%clk 0:00:06.5]} 35. Nxf6 {[%clk 0:01:34.3]} 35... Re2+ {[%clk
0:00:06.2]} 36. Kg3 {[%clk 0:01:34.2]} 36... d3 {[%clk 0:00:06.1]} 37. Rg8+
{[%clk 0:01:31.6]} 37... Kc7 {[%clk 0:00:06]} 38. Nd5+ {[%clk 0:01:32.5]} 38...
Kd7 {[%clk 0:00:05.6]} 39. Rg7+ {[%clk 0:01:32.8]} 39... Kd8 {[%clk 0:00:05]}
40. Ng5 {[%clk 0:01:30]} 40... d2 {[%clk 0:00:04.5]} 41. Ne6+ {[%clk 0:01:30]}
41... Rxe6 {[%clk 0:00:03.9]} 42. fxe6 {[%clk 0:01:30.9]} 42... d1=Q {[%clk
0:00:04.1]} 43. Rg8# {[%clk 0:01:31.3]} 1-0